[Event "Titled Tuesday Blitz January 31 Late 2023"]
[White "Hasanagic, Anel"]
[Black "Rakhmatullaev, Almas"]
[WhiteFideId "14605791"]
[BlackFideId "14205793"]
[WhiteElo "2243"]
[BlackElo "2275"]
[Result "1-0"]
[Round "08"]
[TimeControl "180+2"]
[Date "2023.01.31"]
[WhiteClock "0:00:16"]
[BlackClock "0:00:07"]

1. e4 {[%clk 0:02:59]}  e5 {[%clk 0:03:00]} 2. Nf3 {[%clk 0:02:59]}  Nf6 {[%clk 0:03:01]} 3. Nxe5 {[%clk 0:02:59]}  Nxe4 {[%clk 0:03:01]} 4. Qe2 {[%clk 0:02:54]}  Qe7 {[%clk 0:03:01]} 5. Qxe4 {[%clk 0:02:50]}  d6 {[%clk 0:03:01]} 6. d4 {[%clk 0:02:49]}  dxe5 {[%clk 0:03:02]} 7. dxe5 {[%clk 0:02:50]}  Nc6 {[%clk 0:03:02]} 8. Bb5 {[%clk 0:02:48]}  Bd7 {[%clk 0:03:02]} 9. O-O {[%clk 0:02:44]}  O-O-O {[%clk 0:03:01]} 10. Nc3 {[%clk 0:02:27]}  Nxe5 {[%clk 0:02:59]} 11. Bxd7+ {[%clk 0:02:25]}  Nxd7 {[%clk 0:02:59]} 12. Qa4 {[%clk 0:02:22]}  a6 {[%clk 0:02:54]} 13. Bf4 {[%clk 0:02:10]}  Nb6 {[%clk 0:02:53]} 14. Qb3 {[%clk 0:02:03]}  Qf6 {[%clk 0:02:26]} 15. Bg3 {[%clk 0:01:41]}  h5 {[%clk 0:02:21]} 16. h4 {[%clk 0:01:37]}  Qg6 {[%clk 0:02:10]} 17. Rad1 {[%clk 0:01:31]}  Be7 {[%clk 0:02:10]} 18. a4 {[%clk 0:01:29]}  Qe6 {[%clk 0:01:45]} 19. Qxe6+ {[%clk 0:01:03]}  fxe6 {[%clk 0:01:46]} 20. b3 {[%clk 0:01:00]}  Nd5 {[%clk 0:01:39]} 21. Ne4 {[%clk 0:00:58]}  Nb4 {[%clk 0:01:36]} 22. c3 {[%clk 0:00:55]}  Nd5 {[%clk 0:01:26]} 23. c4 {[%clk 0:00:19]}  Nb4 {[%clk 0:01:22]} 24. Be5 {[%clk 0:00:19]}  Bxh4 {[%clk 0:01:16]} 25. g3 {[%clk 0:00:19]}  Be7 {[%clk 0:01:14]} 26. Bxg7 {[%clk 0:00:19]}  Rhg8 {[%clk 0:01:13]} 27. Bf6 {[%clk 0:00:20]}  Bxf6 {[%clk 0:00:44]} 28. Nxf6 {[%clk 0:00:20]}  Rh8 {[%clk 0:00:44]} 29. Kg2 {[%clk 0:00:19]}  Nd3 {[%clk 0:00:37]} 30. Rh1 {[%clk 0:00:17]}  Nc5 {[%clk 0:00:36]} 31. Rxd8+ {[%clk 0:00:15]}  Rxd8 {[%clk 0:00:36]} 32. Rxh5 {[%clk 0:00:13]}  Nxb3 {[%clk 0:00:36]} 33. g4 {[%clk 0:00:14]}  Nd2 {[%clk 0:00:31]} 34. g5 {[%clk 0:00:13]}  Rf8 {[%clk 0:00:15]} 35. Rh6 {[%clk 0:00:04]}  Nxc4 {[%clk 0:00:14]} 36. g6 {[%clk 0:00:03]}  Rxf6 {[%clk 0:00:06]} 37. g7 {[%clk 0:00:04]}  Rxh6 {[%clk 0:00:07]} 38. g8=Q+ {[%clk 0:00:02]}  Kd7 {[%clk 0:00:08]} 39. Qg7+ {[%clk 0:00:03]}  Kc6 {[%clk 0:00:08]} 40. Qxh6 {[%clk 0:00:04]}  Nd6 {[%clk 0:00:08]} 41. Qc1+ {[%clk 0:00:05]}  Kb6 {[%clk 0:00:08]} 42. f3 {[%clk 0:00:06]}  c5 {[%clk 0:00:08]} 43. Qb2+ {[%clk 0:00:06]}  Kc6 {[%clk 0:00:09]} 44. Qe5 {[%clk 0:00:06]}  b5 {[%clk 0:00:10]} 45. axb5+ {[%clk 0:00:06]}  axb5 {[%clk 0:00:10]} 46. Qe3 {[%clk 0:00:07]}  b4 {[%clk 0:00:11]} 47. Kf2 {[%clk 0:00:07]}  c4 {[%clk 0:00:11]} 48. Qd4 {[%clk 0:00:08]}  b3 {[%clk 0:00:12]} 49. f4 {[%clk 0:00:08]}  Kc7 {[%clk 0:00:06]} 50. Ke2 {[%clk 0:00:08]}  Kc6 {[%clk 0:00:05]} 51. Kd2 {[%clk 0:00:08]}  Kc7 {[%clk 0:00:06]} 52. Qe5 {[%clk 0:00:08]}  Kd7 {[%clk 0:00:06]} 53. Kc3 {[%clk 0:00:08]}  Ke7 {[%clk 0:00:06]} 54. Qg7+ {[%clk 0:00:08]}  Kd8 {[%clk 0:00:06]} 55. Qg8+ {[%clk 0:00:09]}  Kd7 {[%clk 0:00:06]} 56. Qg7+ {[%clk 0:00:09]}  Kc6 {[%clk 0:00:07]} 57. Qe5 {[%clk 0:00:10]}  Kd7 {[%clk 0:00:07]} 58. Kb4 {[%clk 0:00:10]}  Ke7 {[%clk 0:00:06]} 59. Kc5 {[%clk 0:00:10]}  Nf7 {[%clk 0:00:03]} 60. Qc7+ {[%clk 0:00:09]}  Kf6 {[%clk 0:00:04]} 61. Kxc4 {[%clk 0:00:10]}  Nh6 {[%clk 0:00:04]} 62. Qb6 {[%clk 0:00:10]}  Nf5 {[%clk 0:00:05]} 63. Qxb3 {[%clk 0:00:11]}  Nd6+ {[%clk 0:00:04]} 64. Kd4 {[%clk 0:00:10]}  Nf5+ {[%clk 0:00:05]} 65. Ke4 {[%clk 0:00:11]}  Nd6+ {[%clk 0:00:06]} 66. Kf3 {[%clk 0:00:11]}  Nf5 {[%clk 0:00:07]} 67. Qc3+ {[%clk 0:00:12]}  Kf7 {[%clk 0:00:07]} 68. Qe5 {[%clk 0:00:13]}  Ke7 {[%clk 0:00:08]} 69. Ke4 {[%clk 0:00:12]}  Kf7 {[%clk 0:00:09]} 70. Kd3 {[%clk 0:00:13]}  Ke7 {[%clk 0:00:09]} 71. Kc4 {[%clk 0:00:13]}  Nd6+ {[%clk 0:00:09]} 72. Kc5 {[%clk 0:00:13]}  Nf7 {[%clk 0:00:10]} 73. Qc7+ {[%clk 0:00:13]}  Kf6 {[%clk 0:00:11]} 74. Kc6 {[%clk 0:00:13]}  Nh6 {[%clk 0:00:09]} 75. Qe5+ {[%clk 0:00:14]}  Kf7 {[%clk 0:00:10]} 76. Qg5 {[%clk 0:00:14]}  Nf5 {[%clk 0:00:10]} 77. Kd7 {[%clk 0:00:14]}  Ng7 {[%clk 0:00:10]} 78. Kd6 {[%clk 0:00:12]}  Nf5+ {[%clk 0:00:06]} 79. Ke5 {[%clk 0:00:12]}  Ng7 {[%clk 0:00:07]} 80. Qf6+ {[%clk 0:00:12]}  Kg8 {[%clk 0:00:07]} 81. Kd6 {[%clk 0:00:12]}  Ne8+ {[%clk 0:00:07]} 82. Kxe6 {[%clk 0:00:12]}  Nxf6 {[%clk 0:00:08]} 83. Kxf6 {[%clk 0:00:13]}  Kf8 {[%clk 0:00:08]} 84. f5 {[%clk 0:00:14]}  Ke8 {[%clk 0:00:06]} 85. Kg7 {[%clk 0:00:14]}  Kd7 {[%clk 0:00:06]} 86. f6 {[%clk 0:00:15]}  Kc6 {[%clk 0:00:07]} 87. f7 {[%clk 0:00:16]} 1-0


[Site "https://www.chess.com"]

[Event "Titled Tuesday Blitz January 31 Late 2023"]
[White "Iskusnyh, Sergei"]
[Black "Jaracz, Pawel"]
[WhiteFideId "4120027"]
[BlackFideId "1102222"]
[WhiteElo "2440"]
[BlackElo "2467"]
[Result "1-0"]
[Round "08"]
[TimeControl "180+2"]
[Date "2023.01.31"]
[WhiteClock "0:00:12"]
[BlackClock "0:00:02"]

1. d4 {[%clk 0:03:00]}  Nf6 {[%clk 0:02:59]} 2. c4 {[%clk 0:03:00]}  e6 {[%clk 0:02:59]} 3. g3 {[%clk 0:03:00]}  d5 {[%clk 0:02:50]} 4. Nf3 {[%clk 0:02:59]}  Bb4+ {[%clk 0:02:50]} 5. Bd2 {[%clk 0:02:59]}  Be7 {[%clk 0:02:50]} 6. Bg2 {[%clk 0:02:59]}  c6 {[%clk 0:02:49]} 7. Qc2 {[%clk 0:02:58]}  b6 {[%clk 0:02:47]} 8. O-O {[%clk 0:02:40]}  Bb7 {[%clk 0:02:46]} 9. a3 {[%clk 0:02:38]}  O-O {[%clk 0:02:37]} 10. cxd5 {[%clk 0:02:37]}  cxd5 {[%clk 0:02:36]} 11. Bb4 {[%clk 0:02:37]}  Nc6 {[%clk 0:02:32]} 12. Bxe7 {[%clk 0:02:36]}  Qxe7 {[%clk 0:02:32]} 13. Rc1 {[%clk 0:02:34]}  Rfc8 {[%clk 0:02:31]} 14. Qd1 {[%clk 0:02:32]}  Na5 {[%clk 0:02:18]} 15. Nbd2 {[%clk 0:02:31]}  Ba6 {[%clk 0:02:18]} 16. Ne5 {[%clk 0:02:29]}  Nd7 {[%clk 0:02:16]} 17. b4 {[%clk 0:02:09]}  Nxe5 {[%clk 0:02:12]} 18. bxa5 {[%clk 0:02:08]}  Nc4 {[%clk 0:02:05]} 19. Nxc4 {[%clk 0:02:07]}  Bxc4 {[%clk 0:02:04]} 20. axb6 {[%clk 0:01:57]}  axb6 {[%clk 0:02:05]} 21. a4 {[%clk 0:01:56]}  Ra6 {[%clk 0:02:01]} 22. e4 {[%clk 0:01:45]}  Qd7 {[%clk 0:01:36]} 23. exd5 {[%clk 0:01:42]}  exd5 {[%clk 0:01:36]} 24. Rab1 {[%clk 0:01:26]}  g6 {[%clk 0:01:27]} 25. h4 {[%clk 0:01:25]}  h5 {[%clk 0:01:27]} 26. Rb4 {[%clk 0:01:23]}  Rc7 {[%clk 0:01:21]} 27. Rcb1 {[%clk 0:01:19]}  Qc6 {[%clk 0:01:18]} 28. Qd2 {[%clk 0:01:07]}  Re7 {[%clk 0:01:13]} 29. Qg5 {[%clk 0:01:02]}  Re6 {[%clk 0:01:02]} 30. Bf3 {[%clk 0:00:56]}  Rxa4 {[%clk 0:00:57]} 31. Rxa4 {[%clk 0:00:53]}  Qxa4 {[%clk 0:00:57]} 32. Rxb6 {[%clk 0:00:42]}  Qa1+ {[%clk 0:00:52]} 33. Kh2 {[%clk 0:00:42]}  Qxd4 {[%clk 0:00:28]} 34. Rxe6 {[%clk 0:00:40]}  Qxf2+ {[%clk 0:00:28]} 35. Bg2 {[%clk 0:00:40]}  fxe6 {[%clk 0:00:10]} 36. Qxg6+ {[%clk 0:00:39]}  Kf8 {[%clk 0:00:09]} 37. Qxe6 {[%clk 0:00:39]}  Qf7 {[%clk 0:00:04]} 38. Qd6+ {[%clk 0:00:34]}  Kg7 {[%clk 0:00:04]} 39. Qe5+ {[%clk 0:00:33]}  Kh6 {[%clk 0:00:03]} 40. Qg5+ {[%clk 0:00:32]}  Kh7 {[%clk 0:00:04]} 41. Kg1 {[%clk 0:00:30]}  Qa7+ {[%clk 0:00:02]} 42. Kh2 {[%clk 0:00:30]}  Qf7 {[%clk 0:00:02]} 43. Qe5 {[%clk 0:00:28]}  Kh6 {[%clk 0:00:01]} 44. Qe3+ {[%clk 0:00:26]}  Kh7 {[%clk 0:00:01]} 45. Kg1 {[%clk 0:00:26]}  Qf6 {[%clk 0:00:02]} 46. Qa7+ {[%clk 0:00:22]}  Kh6 {[%clk 0:00:02]} 47. Qe3+ {[%clk 0:00:21]}  Kg7 {[%clk 0:00:03]} 48. Bf3 {[%clk 0:00:20]}  d4 {[%clk 0:00:01]} 49. Qg5+ {[%clk 0:00:19]}  Qxg5 {[%clk 0:00:02]} 50. hxg5 {[%clk 0:00:20]}  Kg6 {[%clk 0:00:02]} 51. Kf2 {[%clk 0:00:16]}  Kxg5 {[%clk 0:00:03]} 52. Bd1 {[%clk 0:00:15]}  Bd3 {[%clk 0:00:02]} 53. Kf3 {[%clk 0:00:12]}  Bf5 {[%clk 0:00:02]} 54. Ba4 {[%clk 0:00:12]} 1-0


[Site "https://www.chess.com"]

[Event "Titled Tuesday Blitz January 31 Late 2023"]
[White "Averjanov, Alexey"]
[Black "Poltorak, Sebastian"]
[WhiteFideId "14109867"]
[BlackFideId "1199498"]
[WhiteElo "2399"]
[BlackElo "2354"]
[Result "0-1"]
[Round "08"]
[TimeControl "180+2"]
[Date "2023.01.31"]
[WhiteClock "0:00:05"]
[BlackClock "0:00:02"]

1. d4 {[%clk 0:03:00]}  Nf6 {[%clk 0:02:59]} 2. c4 {[%clk 0:03:00]}  g6 {[%clk 0:02:59]} 3. Nc3 {[%clk 0:02:58]}  d5 {[%clk 0:03:00]} 4. cxd5 {[%clk 0:02:57]}  Nxd5 {[%clk 0:03:01]} 5. e4 {[%clk 0:02:57]}  Nxc3 {[%clk 0:03:01]} 6. bxc3 {[%clk 0:02:56]}  Bg7 {[%clk 0:03:02]} 7. Nf3 {[%clk 0:02:55]}  c5 {[%clk 0:03:02]} 8. Be3 {[%clk 0:02:55]}  Qa5 {[%clk 0:03:02]} 9. Qd2 {[%clk 0:02:56]}  Nc6 {[%clk 0:03:00]} 10. Rc1 {[%clk 0:02:55]}  cxd4 {[%clk 0:03:00]} 11. cxd4 {[%clk 0:02:56]}  Qxd2+ {[%clk 0:03:00]} 12. Kxd2 {[%clk 0:02:57]}  O-O {[%clk 0:02:57]} 13. d5 {[%clk 0:02:57]}  Rd8 {[%clk 0:02:56]} 14. Ke1 {[%clk 0:02:57]}  Na5 {[%clk 0:02:31]} 15. Bg5 {[%clk 0:02:56]}  f6 {[%clk 0:02:13]} 16. Bd2 {[%clk 0:02:54]}  b6 {[%clk 0:02:12]} 17. Bb4 {[%clk 0:02:53]}  Bf8 {[%clk 0:01:52]} 18. Nd4 {[%clk 0:02:32]}  f5 {[%clk 0:01:21]} 19. Bd3 {[%clk 0:02:21]}  fxe4 {[%clk 0:00:54]} 20. Bxe4 {[%clk 0:02:22]}  Ba6 {[%clk 0:00:32]} 21. d6 {[%clk 0:01:45]}  Rac8 {[%clk 0:00:27]} 22. Rxc8 {[%clk 0:01:41]}  Rxc8 {[%clk 0:00:28]} 23. Bd5+ {[%clk 0:01:40]}  Kh8 {[%clk 0:00:23]} 24. dxe7 {[%clk 0:01:37]}  Bxe7 {[%clk 0:00:23]} 25. Bxe7 {[%clk 0:01:38]}  Re8 {[%clk 0:00:23]} 26. Kd2 {[%clk 0:01:34]}  Rxe7 {[%clk 0:00:23]} 27. Kc3 {[%clk 0:01:25]}  Rc7+ {[%clk 0:00:20]} 28. Kb2 {[%clk 0:00:39]}  Rd7 {[%clk 0:00:20]} 29. Re1 {[%clk 0:00:37]}  Rxd5 {[%clk 0:00:20]} 30. Re8+ {[%clk 0:00:35]}  Kg7 {[%clk 0:00:20]} 31. Re7+ {[%clk 0:00:36]}  Kf6 {[%clk 0:00:19]} 32. Rxa7 {[%clk 0:00:34]}  Rxd4 {[%clk 0:00:11]} 33. Rxa6 {[%clk 0:00:34]}  Rd2+ {[%clk 0:00:11]} 34. Kc3 {[%clk 0:00:33]}  Rxa2 {[%clk 0:00:09]} 35. Rxb6+ {[%clk 0:00:31]}  Kg7 {[%clk 0:00:09]} 36. Ra6 {[%clk 0:00:29]}  Rxf2 {[%clk 0:00:06]} 37. Rxa5 {[%clk 0:00:29]}  Rxg2 {[%clk 0:00:07]} 38. h4 {[%clk 0:00:27]}  h5 {[%clk 0:00:07]} 39. Ra1 {[%clk 0:00:24]}  Rh2 {[%clk 0:00:06]} 40. Ra4 {[%clk 0:00:21]}  Rg2 {[%clk 0:00:06]} 41. Rd4 {[%clk 0:00:18]}  Kf6 {[%clk 0:00:03]} 42. Rd1 {[%clk 0:00:14]}  Rh2 {[%clk 0:00:03]} 43. Rf1+ {[%clk 0:00:12]}  Ke5 {[%clk 0:00:03]} 44. Rg1 {[%clk 0:00:11]}  Kf6 {[%clk 0:00:03]} 45. Rf1+ {[%clk 0:00:12]}  Kg7 {[%clk 0:00:04]} 46. Rf4 {[%clk 0:00:11]}  Kh6 {[%clk 0:00:03]} 47. Kd3 {[%clk 0:00:11]}  Rh3+ {[%clk 0:00:04]} 48. Ke2 {[%clk 0:00:11]}  Rg3 {[%clk 0:00:04]} 49. Kf2 {[%clk 0:00:09]}  Ra3 {[%clk 0:00:03]} 50. Kg2 {[%clk 0:00:09]}  Ra6 {[%clk 0:00:04]} 51. Kg3 {[%clk 0:00:08]}  Ra3+ {[%clk 0:00:04]} 52. Kg2 {[%clk 0:00:08]}  Ra6 {[%clk 0:00:05]} 53. Kg3 {[%clk 0:00:08]}  Ra7 {[%clk 0:00:06]} 54. Kg2 {[%clk 0:00:08]}  Rg7 {[%clk 0:00:07]} 55. Kg3 {[%clk 0:00:08]}  Kh7 {[%clk 0:00:08]} 56. Rf6 {[%clk 0:00:07]}  Rd7 {[%clk 0:00:08]} 57. Kh3 {[%clk 0:00:06]}  Rd3+ {[%clk 0:00:08]} 58. Kh2 {[%clk 0:00:07]}  Kg7 {[%clk 0:00:09]} 59. Re6 {[%clk 0:00:07]}  Kf7 {[%clk 0:00:08]} 60. Rc6 {[%clk 0:00:08]}  Re3 {[%clk 0:00:07]} 61. Kg2 {[%clk 0:00:07]}  Re6 {[%clk 0:00:07]} 62. Rc5 {[%clk 0:00:06]}  Kf6 {[%clk 0:00:07]} 63. Kf3 {[%clk 0:00:07]}  Ra6 {[%clk 0:00:06]} 64. Rc3 {[%clk 0:00:06]}  Ra4 {[%clk 0:00:06]} 65. Rc6+ {[%clk 0:00:06]}  Kf5 {[%clk 0:00:04]} 66. Rc5+ {[%clk 0:00:06]}  Kf6 {[%clk 0:00:05]} 67. Rc6+ {[%clk 0:00:07]}  Kg7 {[%clk 0:00:05]} 68. Rc7+ {[%clk 0:00:07]}  Kh6 {[%clk 0:00:06]} 69. Kg3 {[%clk 0:00:08]}  Ra6 {[%clk 0:00:06]} 70. Rc3 {[%clk 0:00:07]}  Kg7 {[%clk 0:00:06]} 71. Rc7+ {[%clk 0:00:07]}  Kf6 {[%clk 0:00:06]} 72. Rc3 {[%clk 0:00:07]}  Ra5 {[%clk 0:00:06]} 73. Rf3+ {[%clk 0:00:07]}  Rf5 {[%clk 0:00:07]} 74. Re3 {[%clk 0:00:08]}  Re5 {[%clk 0:00:06]} 75. Rf3+ {[%clk 0:00:08]}  Ke6 {[%clk 0:00:06]} 76. Rf8 {[%clk 0:00:06]}  Rf5 {[%clk 0:00:06]} 77. Rg8 {[%clk 0:00:06]}  Rf6 {[%clk 0:00:06]} 78. Rg7 {[%clk 0:00:05]}  Kf5 {[%clk 0:00:05]} 79. Rg8 {[%clk 0:00:05]}  Rf7 {[%clk 0:00:05]} 80. Kf3 {[%clk 0:00:05]}  Ke5+ {[%clk 0:00:04]} 81. Kg3 {[%clk 0:00:05]}  Kf6 {[%clk 0:00:04]} 82. Kf4 {[%clk 0:00:05]}  Re7 {[%clk 0:00:02]} 0-1


[Site "https://www.chess.com"]

[Event "Titled Tuesday Blitz January 31 Late 2023"]
[White "Cardoso Cardoso, Jose Gabriel"]
[Black "Costachi, Mihnea"]
[WhiteFideId "4430492"]
[BlackFideId "1217518"]
[WhiteElo "2492"]
[BlackElo "2476"]
[Result "0-1"]
[Round "08"]
[TimeControl "180+2"]
[Date "2023.01.31"]
[WhiteClock "0:00:01"]
[BlackClock "0:00:57"]

1. Nf3 {[%clk 0:02:55]}  Nf6 {[%clk 0:02:59]} 2. b3 {[%clk 0:02:53]}  g6 {[%clk 0:02:59]} 3. Bb2 {[%clk 0:02:52]}  Bg7 {[%clk 0:03:00]} 4. e3 {[%clk 0:02:51]}  O-O {[%clk 0:03:01]} 5. d4 {[%clk 0:02:52]}  b6 {[%clk 0:03:01]} 6. Be2 {[%clk 0:02:52]}  Bb7 {[%clk 0:03:02]} 7. O-O {[%clk 0:02:52]}  d6 {[%clk 0:03:03]} 8. c4 {[%clk 0:02:52]}  Nbd7 {[%clk 0:03:04]} 9. Nc3 {[%clk 0:02:52]}  Ne4 {[%clk 0:03:04]} 10. Qc2 {[%clk 0:02:52]}  Nxc3 {[%clk 0:03:04]} 11. Bxc3 {[%clk 0:02:53]}  e5 {[%clk 0:03:05]} 12. dxe5 {[%clk 0:02:50]}  Nxe5 {[%clk 0:03:05]} 13. e4 {[%clk 0:02:15]}  Re8 {[%clk 0:02:58]} 14. Rad1 {[%clk 0:02:11]}  Bxe4 {[%clk 0:02:40]} 15. Qxe4 {[%clk 0:02:09]}  Nxf3+ {[%clk 0:02:40]} 16. Qxf3 {[%clk 0:02:07]}  Bxc3 {[%clk 0:02:40]} 17. Bd3 {[%clk 0:01:51]}  Qf6 {[%clk 0:02:38]} 18. Be4 {[%clk 0:01:46]}  Qxf3 {[%clk 0:02:36]} 19. Bxf3 {[%clk 0:01:47]}  Rad8 {[%clk 0:02:33]} 20. Rd3 {[%clk 0:01:45]}  Bb2 {[%clk 0:02:25]} 21. g3 {[%clk 0:01:40]}  Re5 {[%clk 0:02:23]} 22. Rb1 {[%clk 0:01:33]}  Ba3 {[%clk 0:02:10]} 23. b4 {[%clk 0:01:31]}  Bxb4 {[%clk 0:02:10]} 24. Rxb4 {[%clk 0:01:30]}  Re1+ {[%clk 0:02:11]} 25. Kg2 {[%clk 0:01:30]}  Rde8 {[%clk 0:02:11]} 26. Rbb3 {[%clk 0:01:20]}  Ra1 {[%clk 0:02:09]} 27. Ra3 {[%clk 0:01:20]}  a5 {[%clk 0:02:08]} 28. Re3 {[%clk 0:01:19]}  Rxe3 {[%clk 0:02:08]} 29. Rxe3 {[%clk 0:01:20]}  Rxa2 {[%clk 0:02:07]} 30. Re7 {[%clk 0:01:18]}  Rc2 {[%clk 0:02:05]} 31. Bd5 {[%clk 0:01:15]}  a4 {[%clk 0:02:06]} 32. Rxc7 {[%clk 0:01:11]}  a3 {[%clk 0:02:05]} 33. Rxf7 {[%clk 0:01:08]}  a2 {[%clk 0:02:05]} 34. Ra7+ {[%clk 0:01:07]}  Kh8 {[%clk 0:02:05]} 35. g4 {[%clk 0:01:00]}  Rd2 {[%clk 0:02:05]} 36. g5 {[%clk 0:00:59]}  h5 {[%clk 0:01:48]} 37. gxh6 {[%clk 0:00:56]}  b5 {[%clk 0:01:49]} 38. Ra8+ {[%clk 0:00:55]}  Kh7 {[%clk 0:01:48]} 39. Bg8+ {[%clk 0:00:46]}  Kxh6 {[%clk 0:01:48]} 40. cxb5 {[%clk 0:00:44]}  d5 {[%clk 0:01:49]} 41. b6 {[%clk 0:00:40]}  Rb2 {[%clk 0:01:45]} 42. Bxd5 {[%clk 0:00:38]}  a1=Q {[%clk 0:01:42]} 43. Rxa1 {[%clk 0:00:37]}  Rxb6 {[%clk 0:01:43]} 44. Ra3 {[%clk 0:00:37]}  Kg5 {[%clk 0:01:42]} 45. Rg3+ {[%clk 0:00:36]}  Kf4 {[%clk 0:01:42]} 46. Bc4 {[%clk 0:00:34]}  Rc6 {[%clk 0:01:42]} 47. Bd3 {[%clk 0:00:34]}  g5 {[%clk 0:01:42]} 48. h3 {[%clk 0:00:34]}  Rb6 {[%clk 0:01:42]} 49. Rg4+ {[%clk 0:00:34]}  Ke5 {[%clk 0:01:42]} 50. Rxg5+ {[%clk 0:00:35]}  Kd4 {[%clk 0:01:42]} 51. Be2 {[%clk 0:00:34]}  Ke4 {[%clk 0:01:42]} 52. Bf3+ {[%clk 0:00:34]}  Kf4 {[%clk 0:01:42]} 53. Rg4+ {[%clk 0:00:34]}  Kf5 {[%clk 0:01:43]} 54. Kg3 {[%clk 0:00:34]}  Rb3 {[%clk 0:01:42]} 55. h4 {[%clk 0:00:33]}  Ra3 {[%clk 0:01:40]} 56. Rg5+ {[%clk 0:00:33]}  Kf6 {[%clk 0:01:40]} 57. Ra5 {[%clk 0:00:32]}  Rxa5 {[%clk 0:01:40]} 58. Bg4 {[%clk 0:00:13]}  Ke5 {[%clk 0:01:38]} 59. f3 {[%clk 0:00:13]}  Ra1 {[%clk 0:01:37]} 60. h5 {[%clk 0:00:12]}  Rg1+ {[%clk 0:01:37]} 61. Kf2 {[%clk 0:00:12]}  Rh1 {[%clk 0:01:38]} 62. Kg2 {[%clk 0:00:12]}  Ra1 {[%clk 0:01:38]} 63. Kg3 {[%clk 0:00:13]}  Kf6 {[%clk 0:01:38]} 64. f4 {[%clk 0:00:12]}  Rg1+ {[%clk 0:01:37]} 65. Kf3 {[%clk 0:00:11]}  Rf1+ {[%clk 0:01:37]} 66. Kg3 {[%clk 0:00:12]}  Kg7 {[%clk 0:01:37]} 67. Bh3 {[%clk 0:00:11]}  Rg1+ {[%clk 0:01:37]} 68. Kf3 {[%clk 0:00:11]}  Kh6 {[%clk 0:01:35]} 69. Bg4 {[%clk 0:00:12]}  Ra1 {[%clk 0:01:34]} 70. Ke4 {[%clk 0:00:12]}  Ra4+ {[%clk 0:01:34]} 71. Ke5 {[%clk 0:00:12]}  Ra5+ {[%clk 0:01:34]} 72. Kf6 {[%clk 0:00:11]}  Ra4 {[%clk 0:01:35]} 73. Ke5 {[%clk 0:00:11]}  Rb4 {[%clk 0:01:34]} 74. Be2 {[%clk 0:00:10]}  Rb3 {[%clk 0:01:34]} 75. Kf5 {[%clk 0:00:08]}  Re3 {[%clk 0:01:32]} 76. Bg4 {[%clk 0:00:08]}  Re1 {[%clk 0:01:32]} 77. Kf6 {[%clk 0:00:07]}  Rg1 {[%clk 0:01:31]} 78. Kf5 {[%clk 0:00:07]}  Ra1 {[%clk 0:01:31]} 79. Bf3 {[%clk 0:00:06]}  Ra7 {[%clk 0:01:30]} 80. Ke5 {[%clk 0:00:05]}  Re7+ {[%clk 0:01:30]} 81. Kf6 {[%clk 0:00:03]}  Re8 {[%clk 0:01:30]} 82. Bd5 {[%clk 0:00:03]}  Rb8 {[%clk 0:01:23]} 83. Bf7 {[%clk 0:00:03]}  Rb6+ {[%clk 0:01:22]} 84. Kf5 {[%clk 0:00:03]}  Kg7 {[%clk 0:01:21]} 85. Bg6 {[%clk 0:00:03]}  Rb5+ {[%clk 0:01:21]} 86. Kg4 {[%clk 0:00:03]}  Kf6 {[%clk 0:01:22]} 87. Bd3 {[%clk 0:00:03]}  Rb4 {[%clk 0:01:21]} 88. Bg6 {[%clk 0:00:04]}  Rb2 {[%clk 0:01:21]} 89. Be4 {[%clk 0:00:04]}  Ra2 {[%clk 0:01:20]} 90. h6 {[%clk 0:00:04]}  Rh2 {[%clk 0:01:15]} 91. h7 {[%clk 0:00:04]}  Kg7 {[%clk 0:01:15]} 92. Kg5 {[%clk 0:00:04]}  Re2 {[%clk 0:01:15]} 93. Bf5 {[%clk 0:00:02]}  Rg2+ {[%clk 0:01:15]} 94. Kh4 {[%clk 0:00:02]}  Rf2 {[%clk 0:01:16]} 95. Kg3 {[%clk 0:00:02]}  Rf1 {[%clk 0:01:17]} 96. Kg4 {[%clk 0:00:02]}  Ra1 {[%clk 0:01:16]} 97. Be4 {[%clk 0:00:02]}  Ra5 {[%clk 0:01:17]} 98. Kf3 {[%clk 0:00:01]}  Ra4 {[%clk 0:01:17]} 99. Bf5 {[%clk 0:00:02]}  Ra8 {[%clk 0:01:17]} 100. Kg4 {[%clk 0:00:02]}  Kf6 {[%clk 0:01:16]} 101. Be4 {[%clk 0:00:02]}  Re8 {[%clk 0:01:16]} 102. Bd5 {[%clk 0:00:02]}  Kg6 {[%clk 0:01:13]} 103. Bg8 {[%clk 0:00:02]}  Kg7 {[%clk 0:01:13]} 104. Kg5 {[%clk 0:00:02]}  Re1 {[%clk 0:01:11]} 105. Kf5 {[%clk 0:00:02]}  Rg1 {[%clk 0:01:12]} 106. Ke5 {[%clk 0:00:02]}  Rh1 {[%clk 0:01:13]} 107. f5 {[%clk 0:00:02]}  Re1+ {[%clk 0:01:13]} 108. Kd6 {[%clk 0:00:02]}  Rd1+ {[%clk 0:01:12]} 109. Ke7 {[%clk 0:00:03]}  Re1+ {[%clk 0:01:11]} 110. Kd6 {[%clk 0:00:02]}  Rh1 {[%clk 0:01:07]} 111. Ke6 {[%clk 0:00:01]}  Re1+ {[%clk 0:00:57]} 0-1


[Site "https://www.chess.com"]

[Event "Titled Tuesday Blitz January 31 Late 2023"]
[White "Akobian, Varuzhan"]
[Black "Moral Garcia, Serafin"]
[WhiteFideId "13300580"]
[BlackFideId "2201925"]
[WhiteElo "2591"]
[BlackElo "2238"]
[Result "0-1"]
[Round "08"]
[TimeControl "180+2"]
[Date "2023.01.31"]
[WhiteClock "0:00:26"]
[BlackClock "0:00:21"]

1. d4 {[%clk 0:03:00]}  Nf6 {[%clk 0:02:59]} 2. c4 {[%clk 0:03:00]}  g6 {[%clk 0:02:59]} 3. Nc3 {[%clk 0:03:00]}  d5 {[%clk 0:02:59]} 4. Bf4 {[%clk 0:03:00]}  Bg7 {[%clk 0:02:58]} 5. e3 {[%clk 0:03:00]}  c5 {[%clk 0:02:49]} 6. dxc5 {[%clk 0:02:59]}  O-O {[%clk 0:02:46]} 7. cxd5 {[%clk 0:02:59]}  Qa5 {[%clk 0:02:44]} 8. Qd2 {[%clk 0:02:57]}  Qxc5 {[%clk 0:02:43]} 9. Rc1 {[%clk 0:02:57]}  Qa5 {[%clk 0:02:37]} 10. Nf3 {[%clk 0:02:55]}  Rd8 {[%clk 0:02:30]} 11. Bc4 {[%clk 0:02:55]}  Nbd7 {[%clk 0:02:25]} 12. Nb5 {[%clk 0:02:47]}  Qxd2+ {[%clk 0:02:25]} 13. Nxd2 {[%clk 0:02:47]}  a6 {[%clk 0:02:16]} 14. Nc3 {[%clk 0:02:34]}  b5 {[%clk 0:01:12]} 15. Bc7 {[%clk 0:02:07]}  Re8 {[%clk 0:01:11]} 16. Be2 {[%clk 0:02:01]}  Bb7 {[%clk 0:01:08]} 17. e4 {[%clk 0:01:56]}  e6 {[%clk 0:01:07]} 18. dxe6 {[%clk 0:01:50]}  Rxe6 {[%clk 0:01:07]} 19. f3 {[%clk 0:01:50]}  Rc8 {[%clk 0:01:01]} 20. Bf4 {[%clk 0:01:42]}  b4 {[%clk 0:00:57]} 21. Nb3 {[%clk 0:01:31]}  bxc3 {[%clk 0:00:56]} 22. bxc3 {[%clk 0:01:32]}  Nc5 {[%clk 0:00:45]} 23. Na5 {[%clk 0:01:31]}  Bxe4 {[%clk 0:00:41]} 24. fxe4 {[%clk 0:01:25]}  Rxe4 {[%clk 0:00:40]} 25. g3 {[%clk 0:00:47]}  Nd3+ {[%clk 0:00:38]} 26. Kd2 {[%clk 0:00:48]}  Nxc1 {[%clk 0:00:36]} 27. Rxc1 {[%clk 0:00:49]}  Ra4 {[%clk 0:00:30]} 28. Nb7 {[%clk 0:00:40]}  Rxa2+ {[%clk 0:00:30]} 29. Rc2 {[%clk 0:00:40]}  Rxc2+ {[%clk 0:00:29]} 30. Kxc2 {[%clk 0:00:41]}  Ne4 {[%clk 0:00:26]} 31. c4 {[%clk 0:00:39]}  Bf8 {[%clk 0:00:27]} 32. Bf3 {[%clk 0:00:34]}  Rxc4+ {[%clk 0:00:24]} 33. Kd3 {[%clk 0:00:34]}  Rc3+ {[%clk 0:00:23]} 34. Kxe4 {[%clk 0:00:34]}  f5+ {[%clk 0:00:24]} 35. Ke5 {[%clk 0:00:28]}  Rxf3 {[%clk 0:00:24]} 36. Nd8 {[%clk 0:00:28]}  a5 {[%clk 0:00:23]} 37. Kf6 {[%clk 0:00:28]}  a4 {[%clk 0:00:23]} 38. Be5 {[%clk 0:00:28]}  a3 {[%clk 0:00:22]} 39. Ne6 {[%clk 0:00:26]}  a2 {[%clk 0:00:21]} 0-1


[Site "https://www.chess.com"]